fUST/lending_fUST_20241119
["ID","MTS","AMOUNT","RATE_DAILY","PERIOD"]
[342600422,1731987039718,-500.0,0.00017816,2]
[342600424,1731987039728,-241.82868106,0.00017816,2]
[342600427,1731987039741,-258.17131894,0.00017816,2]
[342600428,1731987039750,-500.0,0.00017816,2]
[342600430,1731987039760,-500.0,0.00017816,2]
[342600432,1731987039770,-500.0,0.00017816,2]
[342600434,1731987039779,-500.0,0.00017816,2]
[342600436,1731987039789,-500.0,0.00017816,2]
[342600438,1731987039798,-500.0,0.00017816,2]
[342600440,1731987039807,-500.0,0.00017816,2]
[342600442,1731987039817,-500.0,0.00017816,2]
[342600444,1731987039826,-500.0,0.00017816,2]
[342600446,1731987039835,-215.25341042,0.00017816,2]
[342600448,1731987039846,-500.0,0.00017816,2]
[342600450,1731987039856,-500.0,0.00017816,2]
[342600451,1731987039866,-500.0,0.00017816,2]
[342600453,1731987039876,-500.0,0.00017816,2]
[342600455,1731987039886,-500.0,0.00017816,2]
[342600457,1731987039895,-500.0,0.00017816,2]
[342600459,1731987039905,-500.0,0.00017816,2]
[342600461,1731987039915,-500.0,0.00017816,2]
[342600463,1731987039925,-500.0,0.00017816,2]
[342600465,1731987039935,-500.0,0.00017816,2]
[342600467,1731987039945,-500.0,0.00017816,2]
[342600469,1731987039959,-500.0,0.00017816,2]
[342600471,1731987039969,-500.0,0.00017816,2]
[342600473,1731987039979,-500.0,0.00017816,2]
[342600475,1731987039988,-500.0,0.00017816,2]
[342600477,1731987039998,-500.0,0.00017816,2]
[342600479,1731987040007,-500.0,0.00017816,2]
[342600481,1731987040017,-500.0,0.00017816,2]
[342600483,1731987040027,-500.0,0.00017816,2]
[342600485,1731987040036,-500.0,0.00017816,2]
[342600487,1731987040046,-500.0,0.00017816,2]
[342600489,1731987040056,-350.0,0.00017816,2]
[342600491,1731987040068,-500.0,0.00017816,2]
[342600493,1731987040078,-500.0,0.00017816,2]
[342600495,1731987040087,-500.0,0.00017816,2]
[342600497,1731987040097,-500.0,0.00017816,2]
[342600499,1731987040106,-500.0,0.00017816,2]
[342600500,1731987040115,-500.0,0.00017816,2]
[342600502,1731987040125,-500.0,0.00017816,2]
[342600504,1731987040135,-500.0,0.00017816,2]
[342600506,1731987040144,-500.0,0.00017816,2]
[342600508,1731987040154,-500.0,0.00017816,2]
[342600510,1731987040164,-500.0,0.00017816,2]
[342600512,1731987040173,-500.0,0.00017816,2]
[342600514,1731987040182,-500.0,0.00017816,2]
[342600516,1731987040192,-500.0,0.00017816,2]
[342600518,1731987040202,-500.0,0.00017816,2]
[342600520,1731987040217,-500.0,0.00017816,2]
[342600522,1731987040226,-500.0,0.00017816,2]
[342600524,1731987040236,-500.0,0.00017816,2]
[342600525,1731987040246,-500.0,0.00017816,2]
[342600527,1731987040255,-500.0,0.00017816,2]
[342600529,1731987040265,-500.0,0.00017816,2]
[342600531,1731987040276,-858.84060293,0.00017816,2]
[342600533,1731987040286,-197.12861912,0.00017818,2]
[342600535,1731987040303,-217.96911843,0.00017818,2]
[342600537,1731987040314,-224.98875239,0.00017818,2]
[342600539,1731987040325,-151.0,0.00017819,2]
[342600541,1731987040335,-200.718418,0.00017819,2]
[342600543,1731987040348,-151.0,0.00017819,2]
[342600545,1731987040359,-151.0,0.00017819,2]
[342600547,1731987040370,-151.0,0.00017819,2]
[342600549,1731987040380,-151.0,0.00017819,2]
[342600551,1731987040391,-151.0,0.00017819,2]
[342600553,1731987040401,-151.0,0.00017819,2]
[342600554,1731987040411,-151.0,0.00017819,2]
[342600556,1731987040421,-151.0,0.00017819,2]
[342600559,1731987040436,-151.0,0.00017819,2]
[342600561,1731987040451,-151.0,0.00017819,2]
[342600564,1731987040467,-175.814823,0.00017819,2]
[342600566,1731987040482,-152.294643,0.00017819,2]
[342600568,1731987040494,-287.969354,0.00017819,2]
[342600570,1731987040506,-287.969354,0.00017819,2]
[342600573,1731987040520,-287.969354,0.00017819,2]
[342600575,1731987040534,-287.969354,0.00017819,2]
[342600577,1731987040547,-151.0,0.00017819,2]
[342600580,1731987040561,-287.969354,0.00017819,2]
[342600582,1731987040574,-151.0,0.00017819,2]
[342600584,1731987040586,-287.969354,0.00017819,2]
[342600586,1731987040601,-287.969354,0.00017819,2]
[342600589,1731987040614,-151.0,0.00017819,2]
[342600591,1731987040625,-151.0,0.00017819,2]
[342600593,1731987040638,-287.969354,0.00017819,2]
[342600595,1731987040651,-151.0,0.00017819,2]
[342600598,1731987040664,-287.969354,0.00017819,2]
[342600600,1731987040678,-151.0,0.00017819,2]
[342600602,1731987040691,-287.969354,0.00017819,2]
[342600604,1731987040703,-154.414433,0.00017819,2]
[342600607,1731987040719,-287.969354,0.00017819,2]
[342600609,1731987040730,-287.969354,0.00017819,2]
[342600611,1731987040740,-287.969354,0.00017819,2]
[342600613,1731987040753,-287.969354,0.00017819,2]
[342600615,1731987040764,-287.969354,0.00017819,2]
[342600617,1731987040777,-287.969354,0.00017819,2]
[342600620,1731987040790,-287.969354,0.00017819,2]
[342600622,1731987040804,-287.969354,0.00017819,2]
[342600624,1731987040816,-287.969354,0.00017819,2]
[342600626,1731987040830,-287.969359,0.00017819,2]
[342600628,1731987040844,-151.0,0.00017819,2]
[342600631,1731987040857,-151.0,0.00017819,2]
[342600633,1731987040871,-159.495183,0.00017819,2]
[342600635,1731987040884,-151.0,0.00017819,2]
[342600637,1731987040894,-151.0,0.00017819,2]
[342600639,1731987040905,-151.0,0.00017819,2]
[342600641,1731987040916,-151.0,0.00017819,2]
[342600644,1731987040928,-151.0,0.00017819,2]
[342600646,1731987040942,-151.0,0.00017819,2]
[342600648,1731987040955,-151.0,0.00017819,2]
[342600651,1731987040969,-151.0,0.00017819,2]
[342600652,1731987040979,-151.0,0.00017819,2]
[342600653,1731987040990,-151.0,0.0001782,2]
[342600654,1731987041001,-151.0,0.0001782,2]
[342600655,1731987041015,-151.0,0.0001782,2]
[342600656,1731987041027,-151.0,0.0001782,2]
[342600657,1731987041037,-151.0,0.0001782,2]
[342600658,1731987041048,-151.0,0.0001782,2]
[342600659,1731987041059,-151.0,0.0001782,2]
[342600660,1731987041071,-151.0,0.0001782,2]
[342600661,1731987041082,-151.0,0.0001782,2]
[342600662,1731987041094,-151.0,0.0001782,2]
[342600663,1731987041106,-151.0,0.0001782,2]
[342600664,1731987041119,-165.829468,0.0001782,2]
[342600665,1731987041130,-168.162407,0.0001782,2]
[342600666,1731987041141,-378.311725,0.0001782,2]
[342600667,1731987041153,-378.311725,0.0001782,2]
[342600668,1731987041165,-378.311725,0.0001782,2]
[342600669,1731987041177,-378.311725,0.0001782,2]
[342600670,1731987041189,-378.311725,0.0001782,2]
[342600671,1731987041201,-378.311725,0.0001782,2]
[342600672,1731987041217,-378.311725,0.0001782,2]
[342600673,1731987041229,-378.311725,0.0001782,2]
[342600674,1731987041242,-378.311725,0.0001782,2]
[342600675,1731987041257,-378.311725,0.0001782,2]
[342600676,1731987041269,-378.311725,0.0001782,2]
[342600677,1731987041283,-378.311725,0.0001782,2]
[342600678,1731987041296,-378.311725,0.0001782,2]
[342600679,1731987041311,-378.311725,0.0001782,2]
[342600680,1731987041325,-378.311725,0.0001782,2]
[342600681,1731987041339,-378.311725,0.0001782,2]
[342600682,1731987041352,-378.311725,0.0001782,2]
[342600683,1731987041365,-378.311725,0.0001782,2]
[342600684,1731987041377,-1078.705206,0.0001782,2]
[342600685,1731987041394,-1078.705206,0.0001782,2]
[342600686,1731987041407,-480.70826262,0.0001782,2]
[342600908,1731987043704,-1625.334936,0.00017818,2]
[342600911,1731987043728,-1625.334936,0.00017818,2]
[342600913,1731987043740,-1625.334936,0.00017818,2]
[342600915,1731987043752,-1118.577989,0.00017818,2]
[342600918,1731987043767,-475.6,0.00017818,2]
[342600921,1731987043781,-31.156947,0.00017818,2]
[342600923,1731987043793,-497.926253,0.00017818,2]
[342600925,1731987043805,-870.05,0.00017818,2]
[342600930,1731987043839,-257.358683,0.00017818,2]
[342600932,1731987043848,-597.99694338,0.0001782,2]
[342600934,1731987043858,-1078.705206,0.0001782,2]
[342600936,1731987043867,-1078.705206,0.0001782,2]
[342600951,1731987044049,-920.6676225,0.0001782,2]
[342600953,1731987044062,-158.0375835,0.0001782,2]
[342600955,1731987044072,-1078.705206,0.0001782,2]
[342600958,1731987044081,-1078.705206,0.0001782,2]
[342600960,1731987044090,-1078.705206,0.0001782,2]
[342600962,1731987044099,-1078.705206,0.0001782,2]
[342600964,1731987044108,-1078.705206,0.0001782,2]
[342600966,1731987044117,-1078.705206,0.0001782,2]
[342600968,1731987044126,-1078.705206,0.0001782,2]
[342600970,1731987044135,-1078.705206,0.0001782,2]
[342600972,1731987044145,-1078.705206,0.0001782,2]
[342600974,1731987044153,-44.28210569,0.0001782,2]
[342601251,1731987046781,-1625.334936,0.00017818,2]
[342601253,1731987046791,-592.73939479,0.00017818,2]
[342601255,1731987046803,-1032.59554121,0.00017818,2]
[342601257,1731987046812,-1389.5519955,0.00017818,2]
[342601984,1731987086246,183.310963,0.00015979,2]
[342601996,1731987264960,400.0,0.00013973,2]
[342602007,1731987545738,23026.11389895,0.00015987,2]
[342602015,1731988028317,-400.0,0.00013833,2]
[342602016,1731988028339,-400.0,0.00013973,2]
[342602017,1731988028360,-183.310963,0.00014678,2]
[342602018,1731988028382,-500.00947933,0.0001568,2]
[342602019,1731988041086,-189.48014421,0.00015523,2]
[342602020,1731988041108,-364.40285762,0.0001568,2]
[342602135,1731988232596,-634.85038178,0.00015522,2]
[342602674,1731988238532,-184.97421022,0.00015522,2]
[342602676,1731988238542,-492.336715,0.00015572,2]
[342602678,1731988238552,-147.88890284,0.00015679,2]
[342602681,1731988238563,-671.93568916,0.00015679,2]
[342602683,1731988238573,-42.68613475,0.0001568,2]
[342602685,1731988238584,-1362.600091,0.00015731,2]
[342602687,1731988238593,-1873.88610105,0.00015987,2]
[342602689,1731988238603,-1362.600091,0.00016416,2]
[342602691,1731988238614,-158.939,0.00016477,2]
[342602692,1731988238635,-300.0,0.00016708,2]
[342602693,1731988238650,-300.0,0.00016709,2]
[342602694,1731988238660,-1097.31034151,0.00016711,2]
[342602695,1731988238670,-1097.31034151,0.00016711,2]
[342602696,1731988238680,-1097.31034151,0.00016712,2]
[342602698,1731988238691,-1097.31034151,0.00016712,2]
[342602700,1731988238700,-1261.79074214,0.00016713,2]
[342602702,1731988238710,-1097.31034151,0.00016713,2]
[342602704,1731988238725,-929.97517592,0.00016713,2]
[342602706,1731988238736,-3000.0,0.00016757,2]
[342602708,1731988238746,-378.23790176,0.00016807,2]
[342602710,1731988238756,-517.37824205,0.00016807,2]
[342602712,1731988238767,-500.0,0.00016807,2]
[342602714,1731988238776,-500.0,0.00016807,2]
[342602717,1731988238786,-500.0,0.00016807,2]
[342602719,1731988238796,-500.0,0.00016807,2]
[342602721,1731988238806,-500.0,0.00016807,2]
[342602723,1731988238815,-500.0,0.00016807,2]
[342602725,1731988238825,-298.57329218,0.00016807,2]
[342602727,1731988238835,-500.0,0.00016807,2]
[342602729,1731988238844,-500.0,0.00016807,2]
[342602731,1731988238854,-500.0,0.00016807,2]
[342602733,1731988238863,-500.0,0.00016807,2]
[342602735,1731988238873,-500.0,0.00016807,2]
[342602737,1731988238883,-500.0,0.00016807,2]
[342602739,1731988238892,-500.0,0.00016807,2]
[342602741,1731988238902,-500.0,0.00016807,2]
[342602744,1731988238912,-510.19215507,0.00016807,2]
[342602746,1731988238922,-500.0,0.00016807,2]
[342602748,1731988238931,-500.0,0.00016807,2]
[342602750,1731988238941,-500.0,0.00016807,2]
[342602752,1731988238951,-500.0,0.00016807,2]
[342602754,1731988238960,-500.0,0.00016807,2]
[342602756,1731988238972,-500.0,0.00016807,2]
[342602758,1731988238981,-500.0,0.00016807,2]
[342602760,1731988238991,-500.0,0.00016807,2]
[342602762,1731988239000,-500.0,0.00016807,2]
[342602764,1731988239011,-500.0,0.00016807,2]
[342602766,1731988239021,-500.0,0.00016807,2]
[342602768,1731988239031,-500.0,0.00016807,2]
[342602770,1731988239040,-500.0,0.00016807,2]
[342602772,1731988239050,-500.0,0.00016807,2]
[342602774,1731988239060,-500.0,0.00016807,2]
[342602776,1731988239070,-500.0,0.00016807,2]
[342602778,1731988239080,-500.0,0.00016807,2]
[342602780,1731988239090,-500.0,0.00016807,2]
[342602782,1731988239100,-500.0,0.00016807,2]
[342602784,1731988239109,-500.0,0.00016807,2]
[342602786,1731988239119,-500.0,0.00016807,2]
[342602788,1731988239129,-500.0,0.00016807,2]
[342602790,1731988239138,-500.0,0.00016807,2]
[342602792,1731988239148,-500.0,0.00016807,2]
[342602794,1731988239158,-500.0,0.00016807,2]
[342602796,1731988239167,-500.0,0.00016807,2]
[342602798,1731988239177,-500.0,0.00016807,2]
[342602800,1731988239186,-500.0,0.00016807,2]
[342602802,1731988239196,-500.0,0.00016807,2]
[342602804,1731988239207,-500.0,0.00016807,2]
[342602805,1731988239217,-500.0,0.00016807,2]
[342602806,1731988239227,-500.0,0.00016807,2]
[342602807,1731988239236,-500.0,0.00016807,2]
[342602808,1731988239246,-500.0,0.00016807,2]
[342602809,1731988239258,-500.0,0.00016807,2]
[342602810,1731988239267,-500.0,0.00016807,2]
[342602811,1731988239277,-500.0,0.00016807,2]
[342602812,1731988239286,-500.0,0.00016807,2]
[342602813,1731988239296,-500.0,0.00016807,2]
[342602814,1731988239306,-500.0,0.00016807,2]
[342602815,1731988239316,-500.0,0.00016807,2]
[342602816,1731988239326,-500.0,0.00016807,2]
[342602817,1731988239336,-500.0,0.00016807,2]
[342602818,1731988239346,-478.06272021,0.00016807,2]
[342602819,1731988239357,-500.0,0.00016807,2]
[342602820,1731988239367,-710.53906085,0.00016808,2]
[342602821,1731988239377,-151.0,0.00016809,2]
[342602822,1731988239387,-151.0,0.00016809,2]
[342602823,1731988239396,-151.0,0.00016809,2]
[342602824,1731988239406,-154.55148,0.00016809,2]
[342602825,1731988239416,-151.0,0.0001681,2]
[342602826,1731988239426,-151.0,0.0001681,2]
[342602827,1731988239436,-267.88618,0.0001681,2]
[342602828,1731988239445,-151.0,0.0001681,2]
[342602829,1731988239455,-151.0,0.0001681,2]
[342602830,1731988239465,-151.0,0.0001681,2]
[342602831,1731988239478,-151.0,0.0001681,2]
[342602832,1731988239487,-151.0,0.0001681,2]
[342602833,1731988239497,-151.0,0.0001681,2]
[342602834,1731988239508,-151.0,0.0001681,2]
[342602835,1731988239517,-151.0,0.0001681,2]
[342602836,1731988239527,-151.0,0.0001681,2]
[342602837,1731988239537,-151.0,0.0001681,2]
[342602838,1731988239546,-151.0,0.0001681,2]
[342602839,1731988239556,-262.712398,0.0001681,2]
[342602840,1731988239566,-151.246841,0.0001681,2]
[342602841,1731988239575,-1675.257857,0.00016811,2]
[342602842,1731988239585,-1675.257857,0.00016811,2]
[342602843,1731988239595,-1675.257857,0.00016811,2]
[342602844,1731988239604,-1675.257857,0.00016811,2]
[342602845,1731988239614,-1675.257857,0.00016811,2]
[342602846,1731988239623,-1675.257857,0.00016811,2]
[342602847,1731988239633,-218.49515567,0.00016812,2]
[342602848,1731988239645,-187.1001202,0.00016812,2]
[342602849,1731988239655,-223.76049411,0.00016812,2]
[342602850,1731988239665,-151.0,0.00016812,2]
[342602852,1731988239675,-151.0,0.00016812,2]
[342602854,1731988239685,-151.0,0.00016812,2]
[342602855,1731988239695,-151.0,0.00016812,2]
[342602856,1731988239704,-151.0,0.00016812,2]
[342602857,1731988239714,-151.0,0.00016812,2]
[342602858,1731988239725,-151.0,0.00016812,2]
[342602859,1731988239736,-1675.257857,0.00016812,2]
[342602860,1731988239745,-1675.257857,0.00016812,2]
[342602861,1731988239755,-710.53906085,0.00016813,2]
[342602862,1731988239767,-710.53906085,0.00016813,2]
[342602863,1731988239776,-167739.76048572,0.00016813,2]
[342603192,1731988243011,-371.14610111,0.00016639,2]
[342603194,1731988243021,-867.17000298,0.00016813,2]
[342604807,1731988505039,150.0,0.00026,60]
[342604820,1731989233134,-204.13322528,0.00013973,2]
[342604821,1731989246144,-195.86677472,0.00013973,2]
[342604822,1731989246173,-186.6820724,0.00014888,2]
[342604823,1731989246196,-300.0,0.00015095,2]
[342604824,1731989246218,-411.66008604,0.00015096,2]
[342604961,1731989432860,-300.0,0.00015095,2]
[342604963,1731989432871,-300.0,0.00015095,2]
[342604965,1731989432880,-7884.88647292,0.00015096,2]
[342605552,1731989442893,-7969.10311414,0.00015096,2]
[342605553,1731989443002,-8634.3503269,0.00015096,2]
[342605554,1731989443013,-454.20003,0.00015498,2]
[342605555,1731989443026,-1189.94708046,0.00015562,2]
[342605563,1731989446057,-1810.05291954,0.00015562,2]
[342605564,1731989446072,-454.20003,0.00016183,2]
[342605565,1731989446084,-475.31919355,0.00016402,2]
[342605566,1731989446095,-475.31919351,0.00016446,2]
[342605567,1731989446107,-475.31919351,0.00016491,2]
[342605568,1731989446117,-2999.999999,0.000165,2]
[342605569,1731989446128,-420.0,0.00016519,2]
[342605570,1731989446141,-475.31919351,0.00016535,2]
[342605571,1731989446155,-475.31919351,0.0001658,2]
[342605572,1731989446168,-8624.23639706,0.00016589,2]
[342605573,1731989446179,-420.0,0.00016605,2]
[342605574,1731989446191,-475.31919351,0.00016624,2]
[342605575,1731989446203,-475.31919351,0.00016669,2]
[342605576,1731989446214,-161.57142843,0.00016702,2]
[342605577,1731989446225,-161.57142843,0.00016713,2]
[342605578,1731989446237,-475.31919351,0.00016713,2]
[342605579,1731989446248,-500.0,0.00016797,2]
[342605580,1731989446260,-500.0,0.00016797,2]
[342605581,1731989446271,-500.0,0.00016797,2]
[342605582,1731989446280,-500.0,0.00016797,2]
[342605583,1731989446465,-500.0,0.00016797,2]
[342605584,1731989446478,-500.0,0.00016797,2]
[342605585,1731989446488,-500.0,0.00016797,2]
[342605586,1731989446497,-500.0,0.00016797,2]
[342605587,1731989446507,-500.0,0.00016797,2]
[342605588,1731989446516,-500.0,0.00016797,2]
[342605589,1731989446526,-500.0,0.00016797,2]
[342605590,1731989446537,-500.0,0.00016797,2]
[342605591,1731989446547,-500.0,0.00016797,2]
[342605592,1731989446558,-500.0,0.00016797,2]
[342605593,1731989446574,-500.0,0.00016797,2]
[342605594,1731989446584,-500.0,0.00016797,2]
[342605595,1731989446593,-500.0,0.00016797,2]
[342605596,1731989446603,-500.0,0.00016797,2]
[342605597,1731989446613,-500.0,0.00016797,2]
[342605598,1731989446623,-500.0,0.00016797,2]
[342605599,1731989446632,-500.0,0.00016797,2]
[342605600,1731989446642,-555.01972176,0.00016797,2]
[342605601,1731989446651,-500.0,0.00016797,2]
[342605602,1731989446661,-216.77302171,0.00016797,2]
[342605603,1731989446671,-500.0,0.00016797,2]
[342605604,1731989446680,-578.2993146,0.00016797,2]
[342605605,1731989446690,-643.15173183,0.00016797,2]
[342605606,1731989446699,-500.0,0.00016797,2]
[342605607,1731989446709,-500.0,0.00016797,2]
[342605608,1731989446718,-500.0,0.00016797,2]
[342605609,1731989446727,-500.0,0.00016797,2]
[342605610,1731989446737,-500.0,0.00016797,2]
[342605611,1731989446748,-500.0,0.00016797,2]
[342605612,1731989446757,-500.0,0.00016797,2]
[342605613,1731989446766,-500.0,0.00016797,2]
[342605614,1731989446775,-500.0,0.00016797,2]
[342605615,1731989446785,-500.0,0.00016797,2]
[342605616,1731989446795,-500.0,0.00016797,2]
[342605617,1731989446805,-500.0,0.00016797,2]
[342605618,1731989446817,-500.0,0.00016797,2]
[342605619,1731989446826,-500.0,0.00016797,2]
[342605620,1731989446836,-500.0,0.00016797,2]
[342605621,1731989446845,-500.0,0.00016797,2]
[342605622,1731989446855,-500.0,0.00016797,2]
[342605623,1731989446865,-500.0,0.00016797,2]
[342605624,1731989446874,-500.0,0.00016797,2]
[342605625,1731989446884,-500.0,0.00016797,2]
[342605626,1731989446895,-500.0,0.00016797,2]
[342605627,1731989446907,-500.0,0.00016797,2]
[342605628,1731989446918,-500.0,0.00016797,2]
[342605629,1731989446928,-500.0,0.00016797,2]
[342605630,1731989446938,-271.8715963,0.00016797,2]
[342605631,1731989446948,-500.0,0.00016797,2]
[342605632,1731989446957,-500.0,0.00016797,2]
[342605633,1731989446967,-500.0,0.00016797,2]
[342605634,1731989446977,-150.112233,0.000168,2]
[342605635,1731989446987,-155.604351,0.000168,2]
[342605636,1731989446998,-198.52281,0.000168,2]
[342605637,1731989447008,-151.0,0.000168,2]
[342605638,1731989447018,-151.0,0.000168,2]
[342605639,1731989447028,-151.880475,0.000168,2]
[342605640,1731989447037,-156.63234588,0.00016801,2]
[342605641,1731989447047,-152.94660897,0.00016801,2]
[342605642,1731989447056,-151.0,0.00016801,2]
[342605643,1731989447069,-151.0,0.00016801,2]
[342605644,1731989447078,-151.0,0.00016801,2]
[342605645,1731989447087,-1004.163786,0.00016801,2]
[342605646,1731989447097,-1004.163786,0.00016801,2]
[342605647,1731989447106,-1004.163786,0.00016801,2]
[342605648,1731989447115,-1004.163786,0.00016801,2]
[342605649,1731989447125,-1004.163786,0.00016801,2]
[342605650,1731989447134,-1004.163786,0.00016801,2]
[342605651,1731989447144,-900.663425,0.00016801,2]
[342605652,1731989447154,-900.663425,0.00016801,2]
[342605653,1731989447163,-900.663425,0.00016801,2]
[342605654,1731989447173,-900.663425,0.00016801,2]
[342605655,1731989447182,-900.663425,0.00016801,2]
[342605656,1731989447192,-900.663425,0.00016801,2]
[342605657,1731989447201,-3632.792632,0.00016801,2]
[342605658,1731989447211,-3632.792632,0.00016801,2]
[342605659,1731989447222,-3632.792632,0.00016801,2]
[342605660,1731989447231,-151.0,0.00016802,2]
[342605661,1731989447241,-151.0,0.00016802,2]
[342605662,1731989447251,-151.0,0.00016802,2]
[342605663,1731989447261,-151.0,0.00016802,2]
[342605664,1731989447271,-151.0,0.00016802,2]
[342605665,1731989447281,-151.0,0.00016802,2]
[342605666,1731989447291,-151.0,0.00016802,2]
[342605667,1731989447300,-151.0,0.00016802,2]
[342605668,1731989447310,-151.0,0.00016802,2]
[342605669,1731989447324,-152.446874,0.00016802,2]
[342605670,1731989447333,-5754.251205,0.00016802,2]
[342605671,1731989447342,-5754.251205,0.00016802,2]
[342605672,1731989447351,-5754.251205,0.00016802,2]
[342605673,1731989447361,-5754.251205,0.00016802,2]
[342605674,1731989447370,-5754.251205,0.00016802,2]
[342605675,1731989447380,-5754.251205,0.00016802,2]
[342605676,1731989447389,-1005.154715,0.00016802,2]
[342605677,1731989447398,-1005.154715,0.00016802,2]
[342605678,1731989447408,-1005.154715,0.00016802,2]
[342605679,1731989447418,-1005.154715,0.00016802,2]
[342605680,1731989447427,-1005.154715,0.00016802,2]
[342605681,1731989447438,-1005.154715,0.00016802,2]
[342605682,1731989447447,-3068.647544,0.00016802,2]
[342605683,1731989447456,-3068.647544,0.00016802,2]
[342605684,1731989447466,-3068.647544,0.00016802,2]
[342605685,1731989447476,-3068.647544,0.00016802,2]
[342605686,1731989447485,-3068.647544,0.00016802,2]
[342605687,1731989447495,-3068.647544,0.00016802,2]
[342605688,1731989447505,-178.501101,0.00016802,2]
[342605689,1731989447514,-178.501101,0.00016802,2]
[342605690,1731989447523,-178.501101,0.00016802,2]
[342605691,1731989447533,-178.501101,0.00016802,2]
[342605692,1731989447543,-2336.663588,0.00016803,2]
[342605693,1731989447552,-2336.663588,0.00016803,2]
[342605694,1731989447563,-2336.663588,0.00016803,2]
[342605695,1731989447573,-2336.663588,0.00016803,2]
[342605696,1731989447582,-267.462196,0.00016803,2]
[342605697,1731989447591,-267.462196,0.00016803,2]
[342605698,1731989447601,-267.462196,0.00016803,2]
[342605699,1731989447611,-267.462196,0.00016803,2]
[342605700,1731989447621,-297.880531,0.00016804,2]
[342605701,1731989447630,-986.990108,0.00016804,2]
[342605702,1731989447640,-986.990108,0.00016804,2]
[342605703,1731989447650,-986.990108,0.00016804,2]
[342605704,1731989447661,-986.990108,0.00016804,2]
[342605705,1731989447671,-151.0,0.00016804,2]
[342605706,1731989447680,-157.352389,0.00016804,2]
[342605707,1731989447690,-243.969925,0.00016804,2]
[342605708,1731989447699,-243.969925,0.00016804,2]
[342605709,1731989447710,-243.969925,0.00016804,2]
[342605710,1731989447719,-243.969925,0.00016804,2]
[342605711,1731989447730,-3061.603,0.00016805,2]
[342605712,1731989447739,-2887.8436129,0.00016805,2]
[342605721,1731989705032,459.19,0.00026,60]
[342605732,1731990452125,-753.14,0.00010959,2]
[342605733,1731990452147,-122.09847768,0.00013973,2]
[342605755,1731990542300,222.584,0.0002574,60]
[342605758,1731990557182,-2299.93693271,0.000109,2]
[342605811,1731990632414,-277.90152232,0.00013973,2]
[342605813,1731990632424,-3000.0,0.00014569,2]
[342605815,1731990632434,-300.0,0.00014599,2]
[342605817,1731990632443,-300.0,0.00014599,2]
[342605819,1731990632452,-14458.49860224,0.000146,2]
[342605926,1731990638307,-323.81791502,0.000146,2]
[342605928,1731990638319,-3843.41328444,0.000146,2]
[342606356,1731990643208,-4836.52193164,0.000146,2]
[342606358,1731990643220,-1437.74826666,0.000146,2]
[342606360,1731990643229,-409.912296,0.00014653,2]
[342606361,1731990643239,-278.2162715,0.00014738,2]
[342606362,1731990643248,-271.503864,0.00014864,2]
[342606363,1731990643257,-158.94,0.00015548,2]
[342606364,1731990643266,-271.503864,0.00015549,2]
[342606365,1731990643275,-306.0,0.00015882,2]
[342606366,1731990643284,-157.0255958,0.000159,2]
[342606367,1731990643295,-420.0,0.00015984,2]
[342606368,1731990643305,-420.0,0.00016059,2]
[342606369,1731990643316,-212.4704441,0.00016156,2]
[342606370,1731990643325,-271.503864,0.00016233,2]
[342606371,1731990643335,-10434.69834234,0.00016569,2]